[Event "91st GER-ch 2020"]
[Site "Magdeburg"]
[Date "2020.08.17"]
[Round "2.5"]
[White "Gustain, Marc"]
[Black "Mueller, Dominik"]
[Result "1-0"]
[ECO "B12"]
[WhiteElo "2173"]
[BlackElo "2252"]
[Annotator "ChessBase"]
[PlyCount "79"]
[EventDate "2020.08.16"]
[EventType "swiss"]
[EventCountry "GER"]
[SourceTitle "playchess.com"]
[Source "ChessBase"]
[SourceQuality "1"]
[TimeControl "40/5400+30:1800+30"]

1. e4 c6 2. d4 d5 3. e5 Bf5 4. h4 Qc7 5. g4 Bd7 6. h5 c5 7. Nc3 cxd4 8. Qxd4 Nc6 9. Qxd5 Bxg4 10. Nb5 Qd8 11. Be3 Qxd5 12. Nc7+ Kd7 13. Nxd5 Nxe5 14. Bb5+ Kc8 15. Rh4 Nf6 16. Nxf6 exf6 17. f4 Nf3+ 18. Nxf3 Bxf3 19. f5 Bc6 20. Rc4 Kc7 21. Bf4+ Bd6 22. Bxd6+ Kxd6 23. O-O-O+ Kc7 24. Bxc6 bxc6 25. Rg4 Rhg8 26. Rdg1 g5 27. hxg6 hxg6 28. fxg6 Rxg6 29. Rxg6 fxg6 30. Rxg6 Rf8 31. Kd2 Rf7 32. Ke3 Kd6 33. Kf4 Ke6 34. Rg3 f5 35. Re3+ Kd5 36. Re5+ Kd4 37. Rxf5 Rb7 38. b3 c5 39. Kf3 Re7 40. Rf4+ 1-0

[Event "91st GER-ch 2020"]
[Site "Magdeburg"]
[Date "2020.08.17"]
[Round "2.13"]
[White "Ehmann, Thilo"]
[Black "Schulte, Felix"]
[Result "1-0"]
[ECO "B15"]
[WhiteElo "2329"]
[BlackElo "2174"]
[Annotator "ChessBase"]
[PlyCount "143"]
[EventDate "2020.08.16"]
[EventType "swiss"]
[EventCountry "GER"]
[SourceTitle "playchess.com"]
[Source "ChessBase"]
[SourceQuality "1"]
[TimeControl "40/5400+30:1800+30"]

1. e4 {[%emt 0:00:00]} c6 {[%emt 0:00:00]} 2. d4 {[%emt 0:00:03]} d5 {[%emt 0:00:00]} 3. Nc3 {[%emt 0:00:15]} g6 {[%emt 0:00:08]} 4. h3 {[%emt 0:00:30]} Bg7 {[%emt 0:00:07]} 5. Nf3 {[%emt 0:00:07]} Nf6 {[%emt 0:00:05]} 6. Bd3 {[%emt 0:02:05]} dxe4 {[%emt 0:01:00]} 7. Nxe4 {[%emt 0:00:04]} Nxe4 {[%emt 0:00:07]} 8. Bxe4 {[%emt 0:00:04]} Nd7 {[%emt 0:00:23]} 9. O-O {[%emt 0:00:30]} c5 {[%emt 0:00:48]} 10. c3 {[%emt 0:01:43]} Qc7 {[%emt 0:02:32]} 11. Qe2 {[%emt 0:04:11]} cxd4 {[%emt 0:04:41]} 12. Nxd4 {[%emt 0:08:59]} O-O {[%emt 0:05:34]} 13. Nb5 {[%emt 0:08:10]} Qb8 {[%emt 0:08:49]} 14. f4 {[%emt 0:03:45]} a6 {[%emt 0:02:06]} 15. Na3 {[%emt 0:00:56]} Nc5 {[%emt 0:01:56]} 16. Bf3 {[%emt 0:00:48]} e5 {[%emt 0:07:09]} 17. Be3 {[%emt 0:11:53]} Nd7 {[%emt 0:06:13]} 18. fxe5 {[%emt 0:09:02]} Nxe5 {[%emt 0:00:27]} 19. Nc4 {[%emt 0:01:30]} Nxc4 {[%emt 0:07:36]} 20. Qxc4 {[%emt 0:01:02]} Bxh3 {[%emt 0:09:47]} 21. Bd5 {[%emt 0:09:42]} Bf5 {[%emt 0:01:49]} 22. Bc5 {[%emt 0:01:46]} Rc8 {[%emt 0:04:40]} 23. Qb4 {[%emt 0:09:51]} Rc7 {[%emt 0:15:31]} 24. Qb6 {[%emt 0:07:27]} Rd7 {[%emt 0:01:27]} 25. Rad1 {[%emt 0:01:40]} Qd8 {[%emt 0:05:38]} 26. Bxf7+ {[%emt 0:06:16]} Kh8 {[%emt 0:01:27]} 27. Bb3 {[%emt 0:02:02]} Qxb6 {[%emt 0:04:47]} 28. Bxb6 {[%emt 0:00:05]} Re7 {[%emt 0:01:14]} 29. Rfe1 {[%emt 0:01:15]} Rxe1+ {[%emt 0:01:17]} 30. Rxe1 {[%emt 0:00:04]} Bf6 {[%emt 0:01:49]} 31. Re7 {[%emt 0:00:41]} a5 {[%emt 0:04:58]} 32. Rxb7 {[%emt 0:03:02]} a4 {[%emt 0:00:01]} 33. Bd5 {[%emt 0:00:14]} a3 {[%emt 0:00:27]} 34. bxa3 {[%emt 0:00:30]} Bxc3 {[%emt 0:01:14]} 35. Rc7 {[%emt 0:01:52]} Rb8 {[%emt 0:00:01]} 36. Rxc3 {[%emt 0:00:08]} Rxb6 {[%emt 0:00:04]} 37. a4 {[%emt 0:01:21]} Bd7 {[%emt 0:00:38]} 38. Ra3 {[%emt 0:00:27]} Bc8 {[%emt 0:01:31]} 39. Rb3 {[%emt 0:01:49]} Rd6 {[%emt 0:00:23]} 40. Bc4 {[%emt 0:00:23]} Ba6 {[%emt 0:00:34]} 41. Bb5 {[%emt 0:30:57]} Kg7 {[%emt 0:30:10]} 42. Rc3 {[%emt 0:01:12]} Kf6 {[%emt 0:00:00]} 43. Rc7 {[%emt 0:00:00]} Rb6 {[%emt 0:00:00]} 44. Rxh7 {[%emt 0:00:00]} Bxb5 {[%emt 0:00:00]} 45. axb5 {[%emt 0:00:00]} Rxb5 {[%emt 0:00:00]} 46. Rh4 {[%emt 0:00:00]} Kg5 {[%emt 0:00:00]} 47. Rc4 {[%emt 0:00:00]} Rb2 {[%emt 0:00:00]} 48. a4 {[%emt 0:00:00]} Ra2 {[%emt 0:00:00]} 49. Kh2 {[%emt 0:00:00]} Ra3 {[%emt 0:00:00]} 50. g3 {[%emt 0:00:00]} Ra2+ {[%emt 0:00:00]} 51. Kh3 {[%emt 0:00:00]} Kh5 {[%emt 0:00:00]} 52. g4+ {[%emt 0:00:00]} Kg5 {[%emt 0:00:00]} 53. Kg3 {[%emt 0:00:00]} Ra3+ {[%emt 0:00:00]} 54. Kf2 {[%emt 0:00:00]} Rd3 {[%emt 0:00:00]} 55. Ke2 {[%emt 0:00:00]} Rd5 {[%emt 0:00:00]} 56. Ke3 {[%emt 0:00:00]} Rd1 {[%emt 0:02:33]} 57. Rd4 {[%emt 0:00:00]} Rc1 {[%emt 0:00:42]} 58. Kd2 {[%emt 0:00:00]} Rc5 {[%emt 0:00:50]} 59. Kd3 {[%emt 0:00:00]} Rc1 {[%emt 0:00:05]} 60. Rc4 {[%emt 0:00:00]} Rb1 {[%emt 0:00:51]} 61. Kc2 {[%emt 0:00:00]} Rb7 {[%emt 0:00:29]} 62. Kc3 {[%emt 0:00:00]} Rb1 {[%emt 0:00:52]} 63. a5 {[%emt 0:00:00]} Rb5 {[%emt 0:02:54]} 64. Ra4 {[%emt 0:00:00]} Rb1 {[%emt 0:00:52]} 65. Kd3 {[%emt 0:00:00]} Kh4 {[%emt 0:00:28]} 66. Ke3 {[%emt 0:00:03]} g5 {[%emt 0:00:25]} 67. a6 {[%emt 0:01:07]} Rb8 {[%emt 0:00:01]} 68. a7 {[%emt 0:00:43]} Ra8 {[%emt 0:00:05]} 69. Kf3 {[%emt 0:00:21]} Rf8+ {[%emt 0:00:05]} 70. Kg2 {[%emt 0:00:13]} Ra8 {[%emt 0:00:04]} 71. Kh2 {[%emt 0:00:20]} Rf8 {[%emt 0:04:30]} 72. a8=Q {[%emt 0:00:22]} 1-0

[Event "91st GER-ch 2020"]
[Site "Magdeburg"]
[Date "2020.08.17"]
[Round "2.14"]
[White "Schulz, Lukas"]
[Black "Hundack, Rolf"]
[Result "1-0"]
[ECO "C31"]
[WhiteElo "2293"]
[BlackElo "2126"]
[Annotator "ChessBase"]
[PlyCount "59"]
[EventDate "2020.08.16"]
[EventType "swiss"]
[EventCountry "GER"]
[SourceTitle "playchess.com"]
[Source "ChessBase"]
[SourceQuality "1"]
[TimeControl "40/5400+30:1800+30"]

1. e4 {[%emt 0:00:00]} e5 {[%emt 0:00:00]} 2. f4 {[%emt 0:00:00]} d5 {[%emt 0:00:25]} 3. exd5 {[%emt 0:00:18]} c6 {[%emt 0:00:52]} 4. Nc3 {[%emt 0:01:50]} exf4 {[%emt 0:00:33]} 5. Nf3 {[%emt 0:00:14]} Bd6 {[%emt 0:00:27]} 6. d4 {[%emt 0:00:30]} Ne7 {[%emt 0:00:29]} 7. dxc6 {[%emt 0:02:14]} O-O {[%emt 0:01:58]} 8. cxb7 {[%emt 0:07:57]} Bxb7 {[%emt 0:01:06]} 9. Bd3 {[%emt 0:01:26]} Ng6 {[%emt 0:01:56]} 10. O-O {[%emt 0:03:48]} Nd7 {[%emt 0:04:26]} 11. Ne4 {[%emt 0:05:51]} Bc7 {[%emt 0:04:14]} 12. c3 {[%emt 0:03:25]} Re8 {[%emt 0:03:42]} 13. Qc2 {[%emt 0:05:34]} Nf6 {[%emt 0:24:41]} 14. Nxf6+ {[%emt 0:06:50]} Qxf6 {[%emt 0:01:54]} 15. Bd2 {[%emt 0:00:21]} Kh8 {[%emt 0:05:33]} 16. Rae1 {[%emt 0:01:25]} Nh4 {[%emt 0:22:00]} 17. Rf2 {[%emt 0:31:39]} Bxf3 {[%emt 0:17:11]} 18. gxf3 {[%emt 0:01:00]} Re3 {[%emt 0:01:02]} 19. Be4 {[%emt 0:03:27]} Rxe1+ {[%emt 0:03:58]} 20. Bxe1 {[%emt 0:00:05]} Re8 {[%emt 0:00:34]} 21. Re2 {[%emt 0:06:36]} g5 {[%emt 0:02:14]} 22. Qa4 {[%emt 0:06:17]} Rg8 {[%emt 0:00:37]} 23. Qc6 {[%emt 0:00:04]} Bd6 {[%emt 0:00:27]} 24. Kh1 {[%emt 0:00:13]} Rd8 {[%emt 0:00:47]} 25. c4 {[%emt 0:00:56]} g4 {[%emt 0:00:15]} 26. Bc3 {[%emt 0:00:12]} gxf3 {[%emt 0:00:40]} 27. Bxf3 {[%emt 0:00:13]} Nxf3 {[%emt 0:00:42]} 28. d5 {[%emt 0:02:43]} Ne5 {[%emt 0:00:32]} 29. Rxe5 {[%emt 0:00:06]} Qxe5 {[%emt 0:00:36]} 30. Qxd6 {[%emt 0:00:10]} 1-0

[Event "91st GER-ch 2020"]
[Site "Magdeburg"]
[Date "2020.08.17"]
[Round "2.15"]
[White "Bastian, Herbert"]
[Black "Michalowski, Peter"]
[Result "1-0"]
[ECO "C02"]
[WhiteElo "2272"]
[BlackElo "2106"]
[Annotator "ChessBase"]
[PlyCount "56"]
[EventDate "2020.08.16"]
[EventType "swiss"]
[EventCountry "GER"]
[SourceTitle "playchess.com"]
[Source "ChessBase"]
[SourceQuality "1"]
[TimeControl "40/5400+30:1800+30"]

1. e4 {[%emt 0:00:00]} e6 {[%emt 0:00:00]} 2. d4 {[%emt 0:00:00]} d5 {[%emt 0:00:00]} 3. e5 {[%emt 0:01:10]} c5 {[%emt 0:00:05]} 4. c3 {[%emt 0:00:11]} Nc6 {[%emt 0:00:09]} 5. Nf3 {[%emt 0:00:08]} Bd7 {[%emt 0:00:11]} 6. dxc5 {[%emt 0:03:32]} Bxc5 {[%emt 0:00:22]} 7. Bd3 {[%emt 0:00:08]} Nge7 {[%emt 0:00:48]} 8. Qe2 {[%emt 0:00:40]} Ng6 {[%emt 0:11:23]} 9. b4 {[%emt 0:02:40]} Bb6 {[%emt 0:00:11]} 10. b5 {[%emt 0:01:04]} Na5 {[%emt 0:01:21]} 11. h4 {[%emt 0:00:43]} f6 {[%emt 0:04:33]} 12. Bxg6+ {[%emt 0:14:13]} hxg6 {[%emt 0:01:20]} 13. Qd3 {[%emt 0:03:09]} f5 {[%emt 0:38:21]} 14. Bf4 {[%emt 0:05:46]} Qc7 {[%emt 0:04:59]} 15. Nbd2 {[%emt 0:00:53]} Rc8 {[%emt 0:07:57]} 16. Rc1 {[%emt 0:03:00]} Qc5 {[%emt 0:05:51]} 17. Be3 {[%emt 0:04:36]} Qa3 {[%emt 0:09:43]} 18. O-O {[%emt 0:07:31]} Bxe3 {[%emt 0:00:36]} 19. Qxe3 {[%emt 0:01:36]} Bxb5 {[%emt 0:02:18]} 20. Rfe1 {[%emt 0:00:12]} Nc4 {[%emt 0:01:08]} 21. Qg5 {[%emt 0:02:20]} Kf7 {[%emt 0:00:21]} 22. Nd4 {[%emt 0:01:13]} Bd7 {[%emt 0:00:44]} 23. N2f3 {[%emt 0:00:17]} b6 {[%emt 0:05:32]} 24. Qg3 {[%emt 0:01:58]} Rhe8 {[%emt 0:02:30]} 25. h5 {[%emt 0:04:56]} gxh5 {[%emt 0:00:28]} 26. Qh4 {[%emt 0:01:40]} Rh8 27. Ng5+ Kg8 28. Ngf3 Kf7 1-0

[Event "91st GER-ch 2020"]
[Site "Magdeburg"]
[Date "2020.08.17"]
[Round "2.16"]
[White "Trifan, Andrei Ioan"]
[Black "Neurohr, Juergen"]
[Result "0-1"]
[ECO "C18"]
[WhiteElo "2249"]
[BlackElo "2022"]
[Annotator "ChessBase"]
[PlyCount "130"]
[EventDate "2020.08.16"]
[EventType "swiss"]
[EventCountry "GER"]
[SourceTitle "playchess.com"]
[Source "ChessBase"]
[SourceQuality "1"]
[TimeControl "40/5400+30:1800+30"]

1. e4 {[%emt 0:00:00]} e6 {[%emt 0:00:00]} 2. d4 {[%emt 0:00:00]} d5 {[%emt 0:00:00]} 3. Nc3 {[%emt 0:00:00]} Bb4 {[%emt 0:00:00]} 4. e5 {[%emt 0:00:00]} c5 {[%emt 0:00:10]} 5. a3 {[%emt 0:00:25]} Bxc3+ {[%emt 0:00:12]} 6. bxc3 {[%emt 0:00:04]} Ne7 {[%emt 0:00:12]} 7. Qg4 {[%emt 0:00:07]} O-O {[%emt 0:00:09]} 8. Bd3 {[%emt 0:05:23]} f5 {[%emt 0:00:19]} 9. exf6 {[%emt 0:00:40]} Rxf6 {[%emt 0:00:10]} 10. Bg5 {[%emt 0:00:30]} Rf7 {[%emt 0:00:19]} 11. Qh4 {[%emt 0:10:12]} h6 {[%emt 0:20:42]} 12. Bxe7 {[%emt 0:00:38]} Rxe7 {[%emt 0:08:00]} 13. Ne2 {[%emt 0:01:18]} c4 {[%emt 0:05:40]} 14. Bg6 {[%emt 0:00:26]} Nc6 {[%emt 0:00:55]} 15. O-O {[%emt 0:05:56]} e5 {[%emt 0:04:03]} 16. dxe5 {[%emt 0:06:25]} Nxe5 {[%emt 0:00:22]} 17. Bh5 {[%emt 0:03:35]} Bf5 {[%emt 0:04:35]} 18. Nd4 {[%emt 0:04:47]} Bd7 {[%emt 0:11:19]} 19. Rad1 {[%emt 0:03:00]} Be8 {[%emt 0:19:00]} 20. f4 {[%emt 0:09:48]} Bxh5 {[%emt 0:06:31]} 21. Qxh5 {[%emt 0:00:14]} Nc6 {[%emt 0:00:34]} 22. f5 {[%emt 0:05:56]} Re5 {[%emt 0:02:03]} 23. Ne6 {[%emt 0:04:13]} Qf6 {[%emt 0:04:17]} 24. Qg4 {[%emt 0:01:19]} Ne7 {[%emt 0:01:35]} 25. Rd4 {[%emt 0:02:00]} Rxf5 {[%emt 0:01:24]} 26. Nf4 {[%emt 0:06:39]} Rf8 {[%emt 0:01:30]} 27. Rf3 {[%emt 0:02:47]} Qf7 {[%emt 0:02:08]} 28. Ne2 {[%emt 0:07:07]} Rxf3 {[%emt 0:00:30]} 29. gxf3 {[%emt 0:00:02]} Qxf3 {[%emt 0:00:58]} 30. Qxf3 {[%emt 0:00:06]} Rxf3 {[%emt 0:00:06]} 31. Kg2 {[%emt 0:00:46]} Rf5 {[%emt 0:01:36]} 32. Rd1 {[%emt 0:01:08]} Kf7 {[%emt 0:01:27]} 33. Nd4 {[%emt 0:01:32]} Rf6 {[%emt 0:01:24]} 34. Rb1 {[%emt 0:02:54]} b6 {[%emt 0:00:31]} 35. a4 {[%emt 0:00:43]} Nf5 {[%emt 0:01:04]} 36. Nxf5 {[%emt 0:01:32]} Rxf5 {[%emt 0:00:05]} 37. a5 {[%emt 0:00:06]} Rf6 {[%emt 0:00:44]} 38. Rb5 {[%emt 0:00:25]} Rd6 {[%emt 0:00:42]} 39. axb6 {[%emt 0:01:22]} axb6 {[%emt 0:00:08]} 40. h4 {[%emt 0:02:30]} Ke6 {[%emt 0:01:03]} 41. Kf3 {[%emt 0:30:50]} Ke5 {[%emt 0:33:26]} 42. Rb1 {[%emt 0:00:45]} Rf6+ {[%emt 0:00:00]} 43. Kg3 {[%emt 0:00:00]} h5 {[%emt 0:00:00]} 44. Re1+ {[%emt 0:00:00]} Kd6 {[%emt 0:00:00]} 45. Re8 {[%emt 0:00:00]} Rg6+ {[%emt 0:00:00]} 46. Kf3 {[%emt 0:00:00]} Rg4 {[%emt 0:00:00]} 47. Rd8+ {[%emt 0:00:00]} Kc6 {[%emt 0:00:00]} 48. Rc8+ {[%emt 0:00:00]} Kd7 {[%emt 0:00:00]} 49. Rg8 {[%emt 0:00:00]} g6 {[%emt 0:00:00]} 50. Ke3 {[%emt 0:00:00]} Re4+ {[%emt 0:00:00]} 51. Kf3 {[%emt 0:00:00]} Rxh4 {[%emt 0:00:00]} 52. Rxg6 {[%emt 0:00:00]} Rh3+ {[%emt 0:00:00]} 53. Kf4 {[%emt 0:00:00]} Rxc3 {[%emt 0:00:00]} 54. Ke5 {[%emt 0:00:00]} Rxc2 {[%emt 0:00:00]} 55. Kxd5 {[%emt 0:00:00]} b5 {[%emt 0:00:00]} 56. Rg7+ {[%emt 0:00:00]} Ke8 {[%emt 0:00:00]} 57. Rb7 {[%emt 0:00:00]} Rb2 {[%emt 0:00:00]} 58. Kd4 {[%emt 0:00:00]} Rb3 {[%emt 0:00:48]} 59. Rh7 {[%emt 0:00:00]} Rd3+ {[%emt 0:02:36]} 60. Ke4 {[%emt 0:00:00]} b4 {[%emt 0:03:40]} 61. Rxh5 {[%emt 0:00:00]} b3 {[%emt 0:01:19]} 62. Rb5 {[%emt 0:00:00]} Kd7 {[%emt 0:00:56]} 63. Rb4 {[%emt 0:00:00]} Rd1 {[%emt 0:00:48]} 64. Ke5 {[%emt 0:00:00]} c3 {[%emt 0:00:27]} 65. Rb7+ {[%emt 0:00:00]} Ke8 {[%emt 0:00:40]} 0-1

[Event "91st GER-ch 2020"]
[Site "Magdeburg"]
[Date "2020.08.17"]
[Round "2.17"]
[White "Falke, Isaak"]
[Black "Weber, Max"]
[Result "0-1"]
[ECO "A45"]
[WhiteElo "2113"]
[BlackElo "2243"]
[Annotator "ChessBase"]
[PlyCount "72"]
[EventDate "2020.08.16"]
[EventType "swiss"]
[EventCountry "GER"]
[SourceTitle "playchess.com"]
[Source "ChessBase"]
[SourceQuality "1"]
[TimeControl "40/5400+30:1800+30"]

1. d4 {[%emt 0:02:01]} Nf6 {[%emt 0:00:00]} 2. Bf4 {[%emt 0:03:33]} d5 {[%emt 0:00:46]} 3. e3 {[%emt 0:00:12]} c5 {[%emt 0:00:48]} 4. Nf3 {[%emt 0:05:48]} Nc6 {[%emt 0:03:58]} 5. c3 {[%emt 0:02:24]} Qb6 {[%emt 0:00:18]} 6. Qb3 {[%emt 0:05:01]} c4 {[%emt 0:01:04]} 7. Qxb6 {[%emt 0:14:57]} axb6 {[%emt 0:00:45]} 8. Na3 {[%emt 0:01:45]} Bf5 {[%emt 0:11:59]} 9. Be2 {[%emt 0:13:39]} e6 {[%emt 0:04:32]} 10. Nb5 {[%emt 0:01:47]} Kd7 {[%emt 0:06:45]} 11. O-O {[%emt 0:03:53]} Ra5 {[%emt 0:05:52]} 12. b4 {[%emt 0:03:06]} Rxb5 {[%emt 0:08:41]} 13. a4 {[%emt 0:00:05]} Rxb4 {[%emt 0:01:22]} 14. cxb4 {[%emt 0:00:02]} Bxb4 {[%emt 0:00:49]} 15. Rfc1 {[%emt 0:14:37]} Na5 {[%emt 0:08:38]} 16. Ne5+ {[%emt 0:00:20]} Ke7 {[%emt 0:03:57]} 17. g4 {[%emt 0:02:24]} Bg6 {[%emt 0:02:29]} 18. Nxg6+ {[%emt 0:00:23]} hxg6 {[%emt 0:00:07]} 19. Bd1 {[%emt 0:03:18]} Ne4 {[%emt 0:05:02]} 20. Rcb1 {[%emt 0:03:04]} Nc6 {[%emt 0:02:11]} 21. Bc2 {[%emt 0:11:00]} Nc3 {[%emt 0:03:25]} 22. Re1 {[%emt 0:03:20]} Ra8 {[%emt 0:02:29]} 23. f3 {[%emt 0:00:57]} Nxa4 {[%emt 0:05:51]} 24. Reb1 {[%emt 0:01:28]} b5 {[%emt 0:00:51]} 25. e4 {[%emt 0:00:47]} Bc3 {[%emt 0:06:28]} 26. Ra3 {[%emt 0:00:09]} Nxd4 {[%emt 0:00:59]} 27. Bxa4 {[%emt 0:00:26]} bxa4 {[%emt 0:05:15]} 28. Rxb7+ {[%emt 0:00:25]} Ke8 {[%emt 0:00:08]} 29. Bd6 {[%emt 0:01:33]} Ra6 {[%emt 0:02:07]} 30. Bg3 {[%emt 0:01:41]} Nb3 {[%emt 0:01:17]} 31. exd5 {[%emt 0:00:37]} exd5 {[%emt 0:00:11]} 32. Rc7 {[%emt 0:00:20]} Bb2 {[%emt 0:00:33]} 33. Ra2 {[%emt 0:00:11]} a3 {[%emt 0:00:14]} 34. Bf4 {[%emt 0:00:06]} Nd4 {[%emt 0:01:05]} 35. Be3 {[%emt 0:01:36]} Ne2+ {[%emt 0:01:02]} 36. Kf2 {[%emt 0:00:27]} Nc3 {[%emt 0:00:12]} 0-1

[Event "91st GER-ch 2020"]
[Site "Magdeburg"]
[Date "2020.08.18"]
[Round "3.8"]
[White "Siebrecht, Sebastian"]
[Black "Braun, Georg"]
[Result "1-0"]
[ECO "D38"]
[WhiteElo "2417"]
[BlackElo "2360"]
[Annotator "ChessBase"]
[PlyCount "151"]
[EventDate "2020.08.16"]
[EventType "swiss"]
[EventCountry "GER"]
[SourceTitle "playchess.com"]
[Source "ChessBase"]
[SourceQuality "1"]
[TimeControl "40/5400+30:1800+30"]

1. d4 {[%emt 0:00:00]} Nf6 {[%emt 0:00:00]} 2. Nf3 {[%emt 0:00:00]} e6 {[%emt 0:00:25]} 3. c4 {[%emt 0:04:05]} d5 {[%emt 0:00:25]} 4. Nc3 {[%emt 0:00:10]} Bb4 {[%emt 0:00:14]} 5. cxd5 {[%emt 0:07:21]} exd5 {[%emt 0:00:26]} 6. Bg5 {[%emt 0:03:22]} h6 {[%emt 0:01:03]} 7. Bxf6 {[%emt 0:03:11]} Qxf6 {[%emt 0:00:23]} 8. Qa4+ {[%emt 0:00:30]} Nc6 {[%emt 0:00:26]} 9. Ne5 {[%emt 0:00:20]} O-O {[%emt 0:09:42]} 10. Nxc6 {[%emt 0:00:07]} Bxc3+ {[%emt 0:00:18]} 11. bxc3 {[%emt 0:00:02]} Qxc6 {[%emt 0:04:49]} 12. Qb3 {[%emt 0:04:11]} Bf5 {[%emt 0:02:38]} 13. e3 {[%emt 0:00:46]} Be4 {[%emt 0:04:26]} 14. f3 {[%emt 0:02:26]} Bg6 {[%emt 0:07:47]} 15. c4 {[%emt 0:00:17]} dxc4 {[%emt 0:04:09]} 16. Bxc4 {[%emt 0:00:20]} Qd6 {[%emt 0:09:14]} 17. O-O {[%emt 0:01:03]} b6 {[%emt 0:03:07]} 18. Rad1 {[%emt 0:02:10]} Kh8 {[%emt 0:02:53]} 19. e4 {[%emt 0:03:23]} f6 {[%emt 0:04:45]} 20. Qe3 {[%emt 0:06:06]} Rfe8 {[%emt 0:03:17]} 21. Rfe1 {[%emt 0:01:06]} Rad8 {[%emt 0:01:32]} 22. Bb3 {[%emt 0:07:58]} Qb4 {[%emt 0:04:41]} 23. g4 {[%emt 0:06:01]} c5 {[%emt 0:06:28]} 24. dxc5 {[%emt 0:03:45]} bxc5 {[%emt 0:00:31]} 25. Rxd8 {[%emt 0:00:33]} Rxd8 {[%emt 0:00:11]} 26. Rc1 {[%emt 0:01:29]} Rc8 {[%emt 0:01:58]} 27. Be6 {[%emt 0:02:07]} Re8 {[%emt 0:00:59]} 28. Bd5 {[%emt 0:04:15]} Rc8 {[%emt 0:02:19]} 29. h4 {[%emt 0:01:10]} Bh7 {[%emt 0:02:16]} 30. g5 {[%emt 0:07:17]} hxg5 {[%emt 0:03:10]} 31. hxg5 {[%emt 0:00:12]} fxg5 {[%emt 0:00:53]} 32. Qxg5 {[%emt 0:00:23]} Qb2 {[%emt 0:02:46]} 33. Qe3 {[%emt 0:03:10]} Bg8 {[%emt 0:04:23]} 34. Bxg8 {[%emt 0:10:33]} Kxg8 {[%emt 0:00:18]} 35. Qb3+ {[%emt 0:00:05]} Qxb3 {[%emt 0:00:07]} 36. axb3 {[%emt 0:00:02]} Rb8 {[%emt 0:02:15]} 37. Rxc5 {[%emt 0:01:38]} Rxb3 {[%emt 0:00:14]} 38. Rc8+ {[%emt 0:00:05]} Kh7 {[%emt 0:01:11]} 39. Kf2 {[%emt 0:00:13]} a5 {[%emt 0:02:50]} 40. Ra8 {[%emt 0:00:18]} Rb5 {[%emt 0:00:38]} 41. f4 {[%emt 0:38:59]} Kg6 {[%emt 0:38:20]} 42. Kf3 {[%emt 0:03:17]} Rb1 {[%emt 0:00:00]} 43. Rxa5 {[%emt 0:00:00]} Re1 {[%emt 0:00:00]} 44. Ra3 {[%emt 0:00:00]} Kf6 {[%emt 0:00:00]} 45. Ra6+ {[%emt 0:00:00]} Kf7 {[%emt 0:00:00]} 46. f5 {[%emt 0:00:00]} Ke7 {[%emt 0:00:00]} 47. Kf4 {[%emt 0:00:00]} Kf7 {[%emt 0:00:00]} 48. Ra7+ {[%emt 0:00:00]} Kf8 {[%emt 0:00:00]} 49. Rd7 {[%emt 0:00:00]} Ra1 {[%emt 0:00:00]} 50. Ke5 {[%emt 0:00:00]} Ra6 {[%emt 0:00:00]} 51. Rd6 {[%emt 0:00:00]} Ra4 {[%emt 0:00:00]} 52. Rb6 {[%emt 0:00:00]} Ke7 {[%emt 0:00:00]} 53. Rb7+ {[%emt 0:00:00]} Kf8 {[%emt 0:00:00]} 54. Rd7 {[%emt 0:00:00]} Ra6 {[%emt 0:00:00]} 55. Rc7 {[%emt 0:00:00]} Rb6 {[%emt 0:00:00]} 56. Ra7 {[%emt 0:00:00]} Rb5+ {[%emt 0:00:00]} 57. Ke6 {[%emt 0:00:00]} Rb6+ {[%emt 0:00:00]} 58. Kd7 {[%emt 0:00:00]} Rb5 {[%emt 0:05:10]} 59. Kd6 {[%emt 0:00:00]} Rb6+ {[%emt 0:00:20]} 60. Kc5 {[%emt 0:00:00]} Rf6 {[%emt 0:00:50]} 61. Kd5 {[%emt 0:00:00]} Rb6 {[%emt 0:00:20]} 62. e5 {[%emt 0:00:00]} Rb1 {[%emt 0:01:06]} 63. Kd6 {[%emt 0:00:42]} Rb6+ {[%emt 0:00:19]} 64. Kd7 {[%emt 0:00:13]} Rb8 {[%emt 0:01:38]} 65. Rc7 {[%emt 0:00:48]} Kf7 {[%emt 0:00:26]} 66. Kd6+ {[%emt 0:00:30]} Kf8 {[%emt 0:00:21]} 67. e6 {[%emt 0:00:22]} Rb6+ {[%emt 0:01:22]} 68. Kd7 {[%emt 0:01:21]} Rb8 {[%emt 0:00:05]} 69. Kc6 {[%emt 0:00:15]} Rb1 {[%emt 0:00:34]} 70. Rf7+ {[%emt 0:00:19]} Kg8 {[%emt 0:00:06]} 71. Rb7 {[%emt 0:06:48]} Rc1+ {[%emt 0:00:37]} 72. Kd7 {[%emt 0:00:08]} Rd1+ {[%emt 0:00:06]} 73. Ke7 {[%emt 0:00:08]} Rd5 {[%emt 0:00:47]} 74. Rb8+ {[%emt 0:00:20]} Kh7 {[%emt 0:00:05]} 75. f6 {[%emt 0:00:19]} gxf6 {[%emt 0:00:16]} 76. Kxf6 {[%emt 0:00:25]} 1-0